[Event "*** Titled Tuesday Blitz"]
[Site "Chess.com"]
[Date "2019.03.05"]
[Round "2"]
[White "FearNoEvil12"]
[Black "lolo9292"]
[Result "1/2-1/2"]
[WhiteElo "1942"]
[BlackElo "2063"]
[TimeControl "180+2"]
[EndTime "13:30:58 PST"]
[Termination "Game drawn by 50-move rule"]

1. e4 {[%clk 0:03:01.9]} 1... c5 {[%clk 0:02:58.9]} 2. Nc3 {[%clk 0:03:01.6]}
2... a6 {[%clk 0:02:57.5]} 3. a4 {[%clk 0:03:00.1]} 3... d6 {[%clk 0:02:56.4]}
4. f4 {[%clk 0:03:01.3]} 4... Nc6 {[%clk 0:02:48.4]} 5. Bc4 {[%clk 0:03:02.3]}
5... g6 {[%clk 0:02:46.2]} 6. Nf3 {[%clk 0:03:03.5]} 6... Bg7 {[%clk 0:02:38.6]}
7. f5 {[%clk 0:03:03.8]} 7... gxf5 {[%clk 0:02:34.8]} 8. d3 {[%clk 0:03:05.1]}
8... fxe4 {[%clk 0:02:33.6]} 9. dxe4 {[%clk 0:03:05.9]} 9... e6 {[%clk
0:02:31.1]} 10. O-O {[%clk 0:03:03.7]} 10... Nge7 {[%clk 0:02:31.5]} 11. Bg5
{[%clk 0:03:02.8]} 11... h6 {[%clk 0:02:28.8]} 12. Bh4 {[%clk 0:03:02.3]} 12...
Qc7 {[%clk 0:02:26.5]} 13. Qe1 {[%clk 0:02:55.3]} 13... Ng6 {[%clk 0:02:25.9]}
14. Bg3 {[%clk 0:02:54.9]} 14... Nce5 {[%clk 0:02:25.4]} 15. Nxe5 {[%clk
0:02:54.1]} 15... Bxe5 {[%clk 0:02:24.7]} 16. Rd1 {[%clk 0:02:50.1]} 16... Bd7
{[%clk 0:02:21.7]} 17. Qf2 {[%clk 0:02:34]} 17... Bc6 {[%clk 0:02:19.1]} 18.
Bxe5 {[%clk 0:02:18.3]} 18... Nxe5 {[%clk 0:02:21]} 19. Qf6 {[%clk 0:02:18.7]}
19... Rg8 {[%clk 0:02:14.2]} 20. Bxe6 {[%clk 0:02:17]} 20... Qe7 {[%clk
0:02:03.1]} 21. Qxe7+ {[%clk 0:02:00.7]} 21... Kxe7 {[%clk 0:02:05]} 22. Ba2
{[%clk 0:01:59.2]} 22... Rg4 {[%clk 0:01:59.6]} 23. Nd5+ {[%clk 0:01:57.2]}
23... Bxd5 {[%clk 0:01:58.8]} 24. Bxd5 {[%clk 0:01:58.6]} 24... Rag8 {[%clk
0:01:58.6]} 25. g3 {[%clk 0:01:58.4]} 25... h5 {[%clk 0:01:57.7]} 26. Kf2 {[%clk
0:01:39.9]} 26... h4 {[%clk 0:01:57.5]} 27. Rg1 {[%clk 0:01:41.4]} 27... R8g6
{[%clk 0:01:48.6]} 28. Rdf1 {[%clk 0:01:33.6]} 28... b5 {[%clk 0:01:02.6]} 29.
axb5 {[%clk 0:01:31.7]} 29... axb5 {[%clk 0:01:04.5]} 30. b3 {[%clk 0:01:31.6]}
30... b4 {[%clk 0:01:03.7]} 31. gxh4 {[%clk 0:01:18.6]} 31... Rf6+ {[%clk
0:01:00.1]} 32. Ke2 {[%clk 0:01:14.5]} 32... Rxh4 {[%clk 0:01:00.6]} 33. Rxf6
{[%clk 0:01:12.5]} 33... Kxf6 {[%clk 0:01:02.5]} 34. Rf1+ {[%clk 0:01:13.2]}
34... Ke7 {[%clk 0:01:02.3]} 35. Rf2 {[%clk 0:01:14.6]} 35... f6 {[%clk
0:00:56.9]} 36. Rg2 {[%clk 0:01:14.2]} 36... Rh7 {[%clk 0:00:35.9]} 37. Kf1
{[%clk 0:01:13.6]} 37... Nf3 {[%clk 0:00:33.4]} 38. Kf2 {[%clk 0:01:11.5]} 38...
Nd4 {[%clk 0:00:23.3]} 39. Ke3 {[%clk 0:01:07.9]} 39... Rh3+ {[%clk 0:00:22.1]}
40. Kf4 {[%clk 0:01:07.9]} 40... Rh4+ {[%clk 0:00:18.5]} 41. Kg3 {[%clk
0:01:04.1]} 41... Rh7 {[%clk 0:00:20.4]} 42. Kf4 {[%clk 0:00:56.8]} 42... Rh4+
{[%clk 0:00:19.8]} 43. Kg3 {[%clk 0:00:56.9]} 43... Rh7 {[%clk 0:00:21.7]} 44.
Kf4 {[%clk 0:00:58]} 44... Ne6+ {[%clk 0:00:21.4]} 45. Bxe6 {[%clk 0:00:56.9]}
45... Kxe6 {[%clk 0:00:23.3]} 46. Rd2 {[%clk 0:00:53.4]} 46... Rh4+ {[%clk
0:00:20.9]} 47. Kf3 {[%clk 0:00:50.8]} 47... Rh8 {[%clk 0:00:22.8]} 48. Kf4
{[%clk 0:00:50.8]} 48... Rh3 {[%clk 0:00:23]} 49. Rg2 {[%clk 0:00:43.3]} 49...
Rh4+ {[%clk 0:00:19.7]} 50. Kf3 {[%clk 0:00:43.3]} 50... Ke5 {[%clk 0:00:20.6]}
51. Kg3 {[%clk 0:00:29]} 51... Rxe4 {[%clk 0:00:20.4]} 52. h4 {[%clk 0:00:28.8]}
52... Kf5 {[%clk 0:00:20.6]} 53. Rd2 {[%clk 0:00:26.1]} 53... Re6 {[%clk
0:00:17.9]} 54. Rf2+ {[%clk 0:00:21.4]} 54... Kg6 {[%clk 0:00:18.5]} 55. Kg4
{[%clk 0:00:21]} 55... Re4+ {[%clk 0:00:17.5]} 56. Kg3 {[%clk 0:00:21.9]} 56...
f5 {[%clk 0:00:18.4]} 57. Rd2 {[%clk 0:00:21.9]} 57... Re6 {[%clk 0:00:18.2]}
58. Kf4 {[%clk 0:00:22.9]} 58... Re4+ {[%clk 0:00:18.6]} 59. Kg3 {[%clk
0:00:23.6]} 59... Re6 {[%clk 0:00:20.5]} 60. Kf4 {[%clk 0:00:24.4]} 60... Rf6
{[%clk 0:00:21.9]} 61. Rg2+ {[%clk 0:00:23.1]} 61... Kh5 {[%clk 0:00:23.2]} 62.
Rg5+ {[%clk 0:00:23.8]} 62... Kxh4 {[%clk 0:00:24.2]} 63. Rxf5 {[%clk
0:00:24.9]} 63... Re6 {[%clk 0:00:25.8]} 64. Rf8 {[%clk 0:00:24]} 64... Kh3
{[%clk 0:00:24.8]} 65. Kf3 {[%clk 0:00:23]} 65... Kh4 {[%clk 0:00:24.8]} 66. Kf4
{[%clk 0:00:24]} 66... Kh5 {[%clk 0:00:26.1]} 67. Kf5 {[%clk 0:00:24.1]} 67...
Re5+ {[%clk 0:00:27.2]} 68. Kf4 {[%clk 0:00:23.5]} 68... Rd5 {[%clk 0:00:27.5]}
69. Rf6 {[%clk 0:00:21.8]} 69... Rd4+ {[%clk 0:00:27.1]} 70. Kf5 {[%clk
0:00:20.7]} 70... Kh4 {[%clk 0:00:28.3]} 71. Rg6 {[%clk 0:00:19.1]} 71... Rd2
{[%clk 0:00:26.5]} 72. Ke4 {[%clk 0:00:18.8]} 72... Rxc2 {[%clk 0:00:26.1]} 73.
Rxd6 {[%clk 0:00:19]} 73... Rc3 {[%clk 0:00:27.5]} 74. Rd5 {[%clk 0:00:18.3]}
74... Kg4 {[%clk 0:00:24.9]} 75. Re5 {[%clk 0:00:12.7]} 75... Kg3 {[%clk
0:00:23.9]} 76. Kd5 {[%clk 0:00:09.9]} 76... Kf3 {[%clk 0:00:24.3]} 77. Re7
{[%clk 0:00:08.9]} 77... Kf4 {[%clk 0:00:21]} 78. Re8 {[%clk 0:00:07.1]} 78...
Kf3 {[%clk 0:00:17.1]} 79. Re7 {[%clk 0:00:07]} 79... Kf2 {[%clk 0:00:17.3]} 80.
Re8 {[%clk 0:00:07.4]} 80... Rxb3 {[%clk 0:00:16.7]} 81. Kxc5 {[%clk 0:00:07]}
81... Rb1 {[%clk 0:00:16.9]} 82. Kc4 {[%clk 0:00:07.9]} 82... b3 {[%clk
0:00:15.6]} 83. Kc3 {[%clk 0:00:08]} 83... Kf3 {[%clk 0:00:15]} 84. Re7 {[%clk
0:00:07.7]} 84... Kf4 {[%clk 0:00:15.2]} 85. Re8 {[%clk 0:00:08.5]} 85... Kf5
{[%clk 0:00:16.1]} 86. Re7 {[%clk 0:00:09.6]} 86... Kf6 {[%clk 0:00:17.3]} 87.
Re2 {[%clk 0:00:10.7]} 87... Kf5 {[%clk 0:00:18]} 88. Rb2 {[%clk 0:00:11.5]}
88... Rc1+ {[%clk 0:00:18.4]} 89. Kxb3 {[%clk 0:00:12.3]} 89... Rc8 {[%clk
0:00:19.6]} 90. Rc2 {[%clk 0:00:13.2]} 90... Rb8+ {[%clk 0:00:19.9]} 91. Kc3
{[%clk 0:00:14.8]} 91... Ra8 {[%clk 0:00:20.3]} 92. Kd2 {[%clk 0:00:16]} 92...
Rd8+ {[%clk 0:00:18]} 93. Ke2 {[%clk 0:00:16.6]} 93... Re8+ {[%clk 0:00:19.9]}
94. Kd2 {[%clk 0:00:17.5]} 94... Rd8+ {[%clk 0:00:20.7]} 95. Ke2 {[%clk
0:00:18.5]} 95... Re8+ {[%clk 0:00:22.1]} 96. Kd2 {[%clk 0:00:19.7]} 96... Rh8
{[%clk 0:00:23.7]} 97. Rc5+ {[%clk 0:00:19.8]} 97... Ke4 {[%clk 0:00:24.1]} 98.
Kc3 {[%clk 0:00:21.1]} 98... Rh1 {[%clk 0:00:20.2]} 99. Ra5 {[%clk 0:00:20.1]}
99... Rc1+ {[%clk 0:00:21.3]} 100. Kd2 {[%clk 0:00:21.5]} 100... Rg1 {[%clk
0:00:22.1]} 101. Ra4+ {[%clk 0:00:22.3]} 101... Kd5 {[%clk 0:00:23.5]} 102. Ke3
{[%clk 0:00:22.6]} 102... Rg3+ {[%clk 0:00:20.5]} 103. Kf4 {[%clk 0:00:22.6]}
103... Rg7 {[%clk 0:00:21.5]} 104. Ra8 {[%clk 0:00:23.4]} 104... Rf7+ {[%clk
0:00:22]} 105. Ke3 {[%clk 0:00:24.4]} 105... Ke5 {[%clk 0:00:22.7]} 106. Ra5+
{[%clk 0:00:24.2]} 106... Kd6 {[%clk 0:00:23.6]} 107. Ke4 {[%clk 0:00:24.3]}
107... Rh7 {[%clk 0:00:25.2]} 108. Ra6+ {[%clk 0:00:24.4]} 108... Kc5 {[%clk
0:00:22.5]} 109. Ra5+ {[%clk 0:00:24.9]} 109... Kb4 {[%clk 0:00:22.4]} 110. Rg5
{[%clk 0:00:24.3]} 110... Re7+ {[%clk 0:00:23.1]} 111. Kd5 {[%clk 0:00:24.6]}
111... Rd7+ {[%clk 0:00:24.9]} 112. Kc6 {[%clk 0:00:25.1]} 112... Ra7 {[%clk
0:00:25.9]} 113. Rg4+ {[%clk 0:00:25.7]} 113... Kc3 {[%clk 0:00:26.9]} 114. Kd5
{[%clk 0:00:24.3]} 114... Ra5+ {[%clk 0:00:26.7]} 115. Ke6 {[%clk 0:00:25.3]}
115... Ra6+ {[%clk 0:00:27.8]} 116. Kf5 {[%clk 0:00:26.3]} 116... Ra5+ {[%clk
0:00:29.1]} 117. Kg6 {[%clk 0:00:26.8]} 117... Ra6+ {[%clk 0:00:30.3]} 118. Kh5
{[%clk 0:00:27.6]} 118... Ra5+ {[%clk 0:00:31.2]} 119. Rg5 {[%clk 0:00:28.4]}
119... Ra8 {[%clk 0:00:32.4]} 120. Rg3+ {[%clk 0:00:28.2]} 120... Kd4 {[%clk
0:00:30.8]} 121. Kg4 {[%clk 0:00:28.6]} 121... Ke5 {[%clk 0:00:32.1]} 122. Re3+
{[%clk 0:00:28.3]} 122... Kd4 {[%clk 0:00:31.6]} 123. Re7 {[%clk 0:00:28.9]}
123... Rg8+ {[%clk 0:00:29.9]} 124. Kf5 {[%clk 0:00:29.1]} 124... Rf8+ {[%clk
0:00:22.8]} 125. Ke6 {[%clk 0:00:29.3]} 125... Rf1 {[%clk 0:00:24.1]} 126. Kd6
{[%clk 0:00:29.1]} 126... Rf6+ {[%clk 0:00:23.5]} 127. Re6 {[%clk 0:00:29.6]}
127... Rf7 {[%clk 0:00:24.1]} 128. Rh6 {[%clk 0:00:28.4]} 128... Ra7 {[%clk
0:00:25.2]} 129. Rh4+ {[%clk 0:00:29.8]} 129... Ke3 {[%clk 0:00:25.3]} 130. Kc5
{[%clk 0:00:30.5]} 130... Ra5+ {[%clk 0:00:25.9]} 131. Kb6 {[%clk 0:00:30.3]}
131... Rg5 {[%clk 0:00:26.1]} 132. Rh3+ {[%clk 0:00:29.2]} 132... Kd4 {[%clk
0:00:25.4]} 133. Rh4+ {[%clk 0:00:30.1]} 133... Kd5 {[%clk 0:00:21.9]} 134. Kb5
{[%clk 0:00:28.1]} 134... Rg8 {[%clk 0:00:23.1]} 135. Kb4 {[%clk 0:00:28.3]}
135... Rb8+ {[%clk 0:00:24.4]} 136. Kc3 {[%clk 0:00:29.2]} 136... Ra8 {[%clk
0:00:26.3]} 137. Kd2 {[%clk 0:00:29.1]} 137... Ra2+ {[%clk 0:00:27]} 138. Kc3
{[%clk 0:00:28.9]} 138... Ke5 {[%clk 0:00:27.8]} 139. Kd3 {[%clk 0:00:27]}
139... Ra3+ {[%clk 0:00:28.8]} 140. Ke2 {[%clk 0:00:26.7]} 140... Rb3 {[%clk
0:00:29.1]} 141. Rh5+ {[%clk 0:00:25.5]} 141... Ke4 {[%clk 0:00:30.1]} 142. Rh4+
{[%clk 0:00:26.3]} 142... Kf5 {[%clk 0:00:19.8]} 1/2-1/2

[Event "*** Titled Tuesday Blitz"]
[Site "Chess.com"]
[Date "2019.03.05"]
[Round "3"]
[White "Hikaru"]
[Black "Swarnapuri"]
[Result "1-0"]
[WhiteElo "3144"]
[BlackElo "2700"]
[TimeControl "180+2"]
[EndTime "13:37:34 PST"]
[Termination "Hikaru won by resignation"]

1. Nf3 {[%clk 0:03:01.9]} 1... Nc6 {[%clk 0:03:01.5]} 2. d4 {[%clk 0:03:02]}
2... d5 {[%clk 0:03:02.7]} 3. c4 {[%clk 0:03:02.8]} 3... Bg4 {[%clk 0:03:04.1]}
4. cxd5 {[%clk 0:03:02]} 4... Bxf3 {[%clk 0:03:05]} 5. gxf3 {[%clk 0:02:57.8]}
5... Qxd5 {[%clk 0:03:06.5]} 6. e3 {[%clk 0:02:59.2]} 6... e6 {[%clk 0:03:07.8]}
7. Nc3 {[%clk 0:03:00.3]} 7... Qh5 {[%clk 0:03:09.4]} 8. Bd2 {[%clk 0:02:56.5]}
8... O-O-O {[%clk 0:03:04.2]} 9. Rc1 {[%clk 0:02:53.1]} 9... Nge7 {[%clk
0:03:03]} 10. f4 {[%clk 0:02:54.2]} 10... Qh4 {[%clk 0:02:59.1]} 11. Bg2 {[%clk
0:02:52.8]} 11... g5 {[%clk 0:03:00.1]} 12. fxg5 {[%clk 0:02:50.7]} 12... h6
{[%clk 0:03:01.3]} 13. g6 {[%clk 0:02:40.1]} 13... fxg6 {[%clk 0:02:59.1]} 14.
b4 {[%clk 0:02:41.2]} 14... Bg7 {[%clk 0:02:54]} 15. b5 {[%clk 0:02:41.3]} 15...
Nb4 {[%clk 0:02:40.7]} 16. O-O {[%clk 0:02:37.9]} 16... Nbd5 {[%clk 0:02:34.9]}
17. b6 {[%clk 0:02:33.9]} 17... axb6 {[%clk 0:02:26.9]} 18. Qa4 {[%clk
0:02:27.1]} 18... c6 {[%clk 0:01:54.3]} 19. Qa8+ {[%clk 0:02:24.3]} 19... Kd7
{[%clk 0:01:55.6]} 20. Qxb7+ {[%clk 0:02:25.2]} 20... Ke8 {[%clk 0:01:57.2]} 21.
Nxd5 {[%clk 0:02:24.3]} 21... Rxd5 {[%clk 0:01:53.7]} 22. Bxd5 {[%clk 0:02:15]}
22... cxd5 {[%clk 0:01:46.5]} 23. f3 {[%clk 0:02:14.8]} 23... Rf8 {[%clk
0:01:40.1]} 24. Bb4 {[%clk 0:02:12.5]} 24... Qg5+ {[%clk 0:01:36.1]} 25. Kh1
{[%clk 0:02:12.9]} 1-0

[Event "*** Titled Tuesday Blitz"]
[Site "Chess.com"]
[Date "2019.03.05"]
[Round "3"]
[White "ASVZ"]
[Black "tomozupan"]
[Result "1-0"]
[WhiteElo "2403"]
[BlackElo "2217"]
[TimeControl "180+2"]
[EndTime "13:37:54 PST"]
[Termination "ASVZ won by resignation"]

1. e4 {[%clk 0:03:01.9]} 1... e5 {[%clk 0:02:56.3]} 2. Nf3 {[%clk 0:03:02]} 2...
Nc6 {[%clk 0:02:57.1]} 3. Nc3 {[%clk 0:03:03.1]} 3... Nf6 {[%clk 0:02:57.8]} 4.
Bb5 {[%clk 0:03:04.2]} 4... Bb4 {[%clk 0:02:57.9]} 5. O-O {[%clk 0:03:04.9]}
5... d6 {[%clk 0:02:58.1]} 6. d3 {[%clk 0:03:05.9]} 6... O-O {[%clk 0:02:57.6]}
7. Bg5 {[%clk 0:03:06]} 7... h6 {[%clk 0:02:56.8]} 8. Bxf6 {[%clk 0:03:06.4]}
8... gxf6 {[%clk 0:02:44.1]} 9. Nd5 {[%clk 0:03:02.5]} 9... Bc5 {[%clk
0:02:41.9]} 10. c3 {[%clk 0:02:57.7]} 10... a6 {[%clk 0:02:37.2]} 11. Ba4 {[%clk
0:02:55.7]} 11... Be6 {[%clk 0:02:28.9]} 12. b4 {[%clk 0:02:55.6]} 12... Ba7
{[%clk 0:02:28.7]} 13. Bb3 {[%clk 0:02:01.4]} 13... f5 {[%clk 0:02:15.1]} 14.
Ne3 {[%clk 0:02:00.6]} 14... fxe4 {[%clk 0:01:32.3]} 15. dxe4 {[%clk 0:02:01.4]}
15... Qf6 {[%clk 0:01:25]} 16. Nd5 {[%clk 0:01:56.5]} 16... Qg6 {[%clk
0:01:06.6]} 17. Nh4 {[%clk 0:01:49.3]} 17... Qxe4 {[%clk 0:01:06.1]} 18. Nf6+
{[%clk 0:01:49.4]} 1-0

[Event "*** Titled Tuesday Blitz"]
[Site "Chess.com"]
[Date "2019.03.05"]
[Round "3"]
[White "CaptainCasanova"]
[Black "Gabix_94"]
[Result "1-0"]
[WhiteElo "2782"]
[BlackElo "2483"]
[TimeControl "180+2"]
[EndTime "13:37:55 PST"]
[Termination "CaptainCasanova won by resignation"]

1. e4 {[%clk 0:03:01.9]} 1... c5 {[%clk 0:02:29.4]} 2. Nf3 {[%clk 0:02:56.1]}
2... e6 {[%clk 0:02:30.3]} 3. d4 {[%clk 0:02:56.7]} 3... cxd4 {[%clk 0:02:32.2]}
4. Nxd4 {[%clk 0:02:58.6]} 4... a6 {[%clk 0:02:34.1]} 5. c4 {[%clk 0:02:57.8]}
5... Qc7 {[%clk 0:02:33.8]} 6. Nc3 {[%clk 0:02:57.8]} 6... Nf6 {[%clk
0:02:34.7]} 7. a3 {[%clk 0:02:58.1]} 7... Nc6 {[%clk 0:02:32.1]} 8. Be3 {[%clk
0:02:55]} 8... h5 {[%clk 0:02:31.9]} 9. f3 {[%clk 0:02:47.1]} 9... Nxd4 {[%clk
0:02:24.7]} 10. Bxd4 {[%clk 0:02:40.4]} 10... Bd6 {[%clk 0:02:25.4]} 11. Qd2
{[%clk 0:02:33]} 11... Bxh2 {[%clk 0:02:20.2]} 12. O-O-O {[%clk 0:02:07.6]}
12... Bf4 {[%clk 0:02:20.7]} 13. Be3 {[%clk 0:02:09]} 13... Bxe3 {[%clk
0:02:22.1]} 14. Qxe3 {[%clk 0:02:10.9]} 14... d6 {[%clk 0:02:23.6]} 15. g4
{[%clk 0:02:08.4]} 15... g6 {[%clk 0:02:21.7]} 16. Qf4 {[%clk 0:02:03.9]} 16...
Ke7 {[%clk 0:02:19.8]} 17. e5 {[%clk 0:01:52]} 17... dxe5 {[%clk 0:02:18.7]} 18.
Qg5 {[%clk 0:01:53.3]} 18... Rd8 {[%clk 0:01:42.9]} 19. Rxd8 {[%clk 0:01:42.4]}
19... Qxd8 {[%clk 0:01:42.8]} 20. Ne4 {[%clk 0:01:43.2]} 20... Qd4 {[%clk
0:01:43.2]} 21. Qxf6+ {[%clk 0:01:43.2]} 21... Ke8 {[%clk 0:01:45.1]} 22. gxh5
{[%clk 0:01:35.7]} 22... Bd7 {[%clk 0:01:44.9]} 1-0

[Event "*** Titled Tuesday Blitz"]
[Site "Chess.com"]
[Date "2019.03.05"]
[Round "3"]
[White "Tocras"]
[Black "TheBigBoss04"]
[Result "1-0"]
[WhiteElo "2619"]
[BlackElo "2547"]
[TimeControl "180+2"]
[EndTime "13:38:10 PST"]
[Termination "Tocras won by resignation"]

1. e4 {[%clk 0:03:01.9]} 1... c5 {[%clk 0:02:57.8]} 2. Nc3 {[%clk 0:03:01.1]}
2... a6 {[%clk 0:02:57.4]} 3. g3 {[%clk 0:03:00.3]} 3... b5 {[%clk 0:02:51.3]}
4. Bg2 {[%clk 0:03:01.1]} 4... Bb7 {[%clk 0:02:52.9]} 5. Nge2 {[%clk 0:03:02.5]}
5... e6 {[%clk 0:02:54.2]} 6. d4 {[%clk 0:03:03]} 6... cxd4 {[%clk 0:02:52.9]}
7. Nxd4 {[%clk 0:03:04.9]} 7... Nf6 {[%clk 0:02:36.6]} 8. O-O {[%clk 0:03:05.6]}
8... Qc7 {[%clk 0:02:29.2]} 9. Re1 {[%clk 0:03:04.7]} 9... d6 {[%clk 0:02:28.9]}
10. a4 {[%clk 0:03:05.4]} 10... b4 {[%clk 0:02:28.7]} 11. Nd5 {[%clk 0:03:06]}
11... exd5 {[%clk 0:02:16]} 12. exd5+ {[%clk 0:03:07]} 12... Kd8 {[%clk
0:02:17.5]} 13. Bg5 {[%clk 0:03:04.1]} 13... Nd7 {[%clk 0:02:03.2]} 14. Qe2
{[%clk 0:02:55.8]} 14... Ne5 {[%clk 0:01:45.1]} 15. f4 {[%clk 0:02:51.7]} 15...
Qb6 {[%clk 0:01:41.1]} 16. fxe5 {[%clk 0:02:29.8]} 16... Qxd4+ {[%clk
0:01:22.6]} 17. Be3 {[%clk 0:02:30.9]} 17... Qg4 {[%clk 0:01:01.3]} 18. Bb6+
{[%clk 0:02:14.6]} 18... Kc8 {[%clk 0:00:52.6]} 19. Bh3 {[%clk 0:02:01.3]} 1-0

[Event "*** Titled Tuesday Blitz"]
[Site "Chess.com"]
[Date "2019.03.05"]
[Round "3"]
[White "vovachesss"]
[Black "pedromartinez91"]
[Result "1-0"]
[WhiteElo "2603"]
[BlackElo "2407"]
[TimeControl "180+2"]
[EndTime "13:38:28 PST"]
[Termination "vovachesss won by resignation"]

1. Nf3 {[%clk 0:03:01.9]} 1... e6 {[%clk 0:03:00.1]} 2. b3 {[%clk 0:03:02.9]}
2... b6 {[%clk 0:02:58]} 3. Bb2 {[%clk 0:03:04]} 3... Bb7 {[%clk 0:02:59.5]} 4.
g3 {[%clk 0:03:01.4]} 4... Bxf3 {[%clk 0:02:59.7]} 5. exf3 {[%clk 0:03:02.1]}
5... c5 {[%clk 0:03:01.3]} 6. Bg2 {[%clk 0:03:02.7]} 6... Nc6 {[%clk 0:03:02]}
7. O-O {[%clk 0:03:04.1]} 7... Nf6 {[%clk 0:03:01.7]} 8. f4 {[%clk 0:03:05]}
8... Be7 {[%clk 0:03:02.3]} 9. d3 {[%clk 0:02:54.9]} 9... O-O {[%clk 0:03:02.5]}
10. Nd2 {[%clk 0:02:56]} 10... d5 {[%clk 0:02:58.2]} 11. Nf3 {[%clk 0:02:55.5]}
11... Nd7 {[%clk 0:02:58.7]} 12. c4 {[%clk 0:02:51]} 12... d4 {[%clk 0:02:49.2]}
13. Qe2 {[%clk 0:02:38]} 13... Rc8 {[%clk 0:02:48.5]} 14. Ne5 {[%clk 0:02:33.5]}
14... Ndxe5 {[%clk 0:02:30.6]} 15. fxe5 {[%clk 0:02:34.7]} 15... a6 {[%clk
0:02:21.8]} 16. f4 {[%clk 0:02:32.2]} 16... b5 {[%clk 0:02:22.1]} 17. f5 {[%clk
0:02:29.7]} 17... exf5 {[%clk 0:02:22.5]} 18. Rxf5 {[%clk 0:02:30.7]} 18... bxc4
{[%clk 0:02:20.3]} 19. dxc4 {[%clk 0:02:13.7]} 19... Qd7 {[%clk 0:02:16.2]} 20.
Raf1 {[%clk 0:02:00.4]} 20... Nd8 {[%clk 0:02:16.2]} 21. Bd5 {[%clk 0:01:57.5]}
21... Ne6 {[%clk 0:02:14.4]} 22. Qg4 {[%clk 0:01:58.3]} 22... Nc7 {[%clk
0:01:01.6]} 23. Rxf7 {[%clk 0:01:46]} 1-0

[Event "*** Titled Tuesday Blitz"]
[Site "Chess.com"]
[Date "2019.03.05"]
[Round "3"]
[White "Witik"]
[Black "Sashadav97"]
[Result "1-0"]
[WhiteElo "2673"]
[BlackElo "2636"]
[TimeControl "180+2"]
[EndTime "13:38:37 PST"]
[Termination "Witik won by resignation"]

1. d4 {[%clk 0:03:01.9]} 1... d5 {[%clk 0:02:59.1]} 2. c4 {[%clk 0:03:02.6]}
2... e6 {[%clk 0:03:00.5]} 3. Nf3 {[%clk 0:03:03.2]} 3... Be7 {[%clk 0:03:01.4]}
4. Nc3 {[%clk 0:03:04]} 4... Nf6 {[%clk 0:03:02.6]} 5. Bf4 {[%clk 0:03:04.9]}
5... O-O {[%clk 0:03:02.1]} 6. e3 {[%clk 0:03:06]} 6... Nbd7 {[%clk 0:03:01.9]}
7. Rc1 {[%clk 0:03:06.4]} 7... c5 {[%clk 0:02:45.8]} 8. cxd5 {[%clk 0:03:06.8]}
8... Nxd5 {[%clk 0:02:41.3]} 9. Bg3 {[%clk 0:03:07]} 9... Nxc3 {[%clk
0:02:34.5]} 10. bxc3 {[%clk 0:03:06.5]} 10... Qa5 {[%clk 0:02:25.1]} 11. Bd3
{[%clk 0:03:06.3]} 11... Nf6 {[%clk 0:02:23]} 12. O-O {[%clk 0:03:05.9]} 12...
Qxa2 {[%clk 0:02:11.7]} 13. Ne5 {[%clk 0:02:46.1]} 13... Qa5 {[%clk 0:02:05.4]}
14. Bh4 {[%clk 0:02:36]} 14... Qd8 {[%clk 0:02:00.7]} 15. f4 {[%clk 0:02:23.3]}
15... a5 {[%clk 0:01:21.2]} 16. Rf3 {[%clk 0:02:22.9]} 16... Nd7 {[%clk
0:01:18.9]} 17. Bxh7+ {[%clk 0:02:22.1]} 17... Kh8 {[%clk 0:01:02.1]} 18. Bxe7
{[%clk 0:02:11.6]} 18... Qxe7 {[%clk 0:01:04]} 19. Rh3 {[%clk 0:02:12.3]} 19...
Nf6 {[%clk 0:01:02]} 20. Bg6+ {[%clk 0:01:38.5]} 20... Kg8 {[%clk 0:01:02.1]}
21. Bxf7+ {[%clk 0:01:39.7]} 21... Rxf7 {[%clk 0:01:03.2]} 22. Ng6 {[%clk
0:01:40.8]} 22... Nh7 {[%clk 0:01:00.6]} 23. Qh5 {[%clk 0:01:34.7]} 1-0

[Event "*** Titled Tuesday Blitz"]
[Site "Chess.com"]
[Date "2019.03.05"]
[Round "3"]
[White "kacprekt"]
[Black "Doraemon7"]
[Result "0-1"]
[WhiteElo "2274"]
[BlackElo "2607"]
[TimeControl "180+2"]
[EndTime "13:38:41 PST"]
[Termination "Doraemon7 won by resignation"]

1. d4 {[%clk 0:03:01.9]} 1... Nf6 {[%clk 0:03:00.3]} 2. c4 {[%clk 0:03:02.6]}
2... e6 {[%clk 0:03:01.8]} 3. Nc3 {[%clk 0:03:02.6]} 3... Bb4 {[%clk 0:03:03.3]}
4. Nf3 {[%clk 0:03:03.5]} 4... c5 {[%clk 0:02:58.1]} 5. g3 {[%clk 0:03:03.4]}
5... cxd4 {[%clk 0:02:55.4]} 6. Nxd4 {[%clk 0:03:02.1]} 6... Nc6 {[%clk
0:02:56.9]} 7. Bg2 {[%clk 0:03:01.5]} 7... O-O {[%clk 0:02:56.7]} 8. O-O {[%clk
0:03:01.7]} 8... Bxc3 {[%clk 0:02:46.3]} 9. bxc3 {[%clk 0:03:01.9]} 9... Ne5
{[%clk 0:02:48.2]} 10. Qb3 {[%clk 0:02:41.5]} 10... a6 {[%clk 0:02:24.5]} 11. f4
{[%clk 0:02:33]} 11... Nc6 {[%clk 0:02:22.5]} 12. e4 {[%clk 0:02:32.9]} 12...
Na5 {[%clk 0:02:15.8]} 13. Qa4 {[%clk 0:02:31.8]} 13... d6 {[%clk 0:02:03.2]}
14. Ba3 {[%clk 0:02:23.8]} 14... Bd7 {[%clk 0:01:59.9]} 15. Qb4 {[%clk
0:02:17.4]} 15... Rc8 {[%clk 0:01:50.9]} 16. Qxd6 {[%clk 0:02:16.1]} 16... Re8
{[%clk 0:01:43.9]} 17. e5 {[%clk 0:02:06.4]} 17... Nxc4 {[%clk 0:01:44.8]} 18.
Qb4 {[%clk 0:01:59.4]} 18... Nd5 {[%clk 0:01:34.1]} 19. Bxd5 {[%clk 0:01:54.9]}
19... exd5 {[%clk 0:01:36]} 20. Bc1 {[%clk 0:01:55]} 20... Bh3 {[%clk
0:01:32.5]} 21. Rf2 {[%clk 0:01:55.6]} 21... b5 {[%clk 0:01:27.4]} 22. a4 {[%clk
0:01:53.2]} 22... f6 {[%clk 0:01:20.8]} 23. axb5 {[%clk 0:01:52.3]} 23... fxe5
{[%clk 0:01:21.4]} 24. fxe5 {[%clk 0:01:51.8]} 24... Nxe5 {[%clk 0:01:13.7]} 25.
Nc6 {[%clk 0:01:46.3]} 25... Nxc6 {[%clk 0:01:03.1]} 26. bxc6 {[%clk 0:01:44.4]}
26... Re1+ {[%clk 0:01:03.2]} 0-1